[Event "*** Titled Tuesday Blitz"]
[Site "Chess.com"]
[Date "2018.01.02"]
[Round "9"]
[White "DiogenesSinopeus"]
[Black "juniortay"]
[Result "1-0"]
[WhiteElo "2389"]
[BlackElo "2293"]
[TimeControl "180+2"]
[EndTime "14:59:48 PST"]
[Termination "DiogenesSinopeus won by resignation"]

1. d4 {[%clk 0:03:01.9]} 1... Nf6 {[%clk 0:02:59.6]} 2. c4 {[%clk 0:03:03.1]}
2... g6 {[%clk 0:03:00.8]} 3. Nc3 {[%clk 0:03:04.4]} 3... Bg7 {[%clk 0:03:02.4]}
4. e4 {[%clk 0:03:05.5]} 4... d6 {[%clk 0:03:04.3]} 5. Nf3 {[%clk 0:03:07.1]}
5... O-O {[%clk 0:03:06.1]} 6. Be2 {[%clk 0:03:08.8]} 6... c5 {[%clk 0:03:07.3]}
7. d5 {[%clk 0:03:06.8]} 7... b5 {[%clk 0:03:07.9]} 8. cxb5 {[%clk 0:03:04.7]}
8... a6 {[%clk 0:03:09]} 9. O-O {[%clk 0:03:04.8]} 9... axb5 {[%clk 0:03:07.9]}
10. Bxb5 {[%clk 0:03:04.7]} 10... Ba6 {[%clk 0:03:09.2]} 11. Qe2 {[%clk
0:02:58.5]} 11... Qb6 {[%clk 0:03:09.2]} 12. a4 {[%clk 0:02:57.5]} 12... Nbd7
{[%clk 0:03:09.3]} 13. Nd2 {[%clk 0:02:48.3]} 13... Bxb5 {[%clk 0:02:53.7]} 14.
Nxb5 {[%clk 0:02:49.1]} 14... Qb7 {[%clk 0:02:53.9]} 15. Nc4 {[%clk 0:02:47.5]}
15... Nb6 {[%clk 0:02:53.1]} 16. Nxb6 {[%clk 0:02:32.3]} 16... Qxb6 {[%clk
0:02:52.5]} 17. Bg5 {[%clk 0:02:30]} 17... h6 {[%clk 0:02:44.7]} 18. Bd2 {[%clk
0:02:30.8]} 18... Ne8 {[%clk 0:02:39.3]} 19. Bc3 {[%clk 0:02:30.1]} 19... Nc7
{[%clk 0:02:33.2]} 20. Nxc7 {[%clk 0:02:10.3]} 20... Qxc7 {[%clk 0:02:32.4]} 21.
Qc4 {[%clk 0:02:00.2]} 21... Rfb8 {[%clk 0:02:30.3]} 22. a5 {[%clk 0:01:59.4]}
22... Qd7 {[%clk 0:02:26.2]} 23. h3 {[%clk 0:01:50]} 23... Qb5 {[%clk
0:02:23.6]} 24. Qa4 {[%clk 0:01:35]} 24... Ra6 {[%clk 0:02:05.9]} 25. Ra3 {[%clk
0:01:24.8]} 25... Bxc3 {[%clk 0:01:48.6]} 26. bxc3 {[%clk 0:01:24.7]} 26... Qxa4
{[%clk 0:01:48.6]} 27. Rxa4 {[%clk 0:01:25.8]} 27... Rb5 {[%clk 0:01:44.3]} 28.
Rfa1 {[%clk 0:01:26.5]} 28... Rb3 {[%clk 0:01:43.6]} 29. R4a3 {[%clk 0:01:24.2]}
29... Rb2 {[%clk 0:01:43.3]} 30. Kf1 {[%clk 0:01:24.7]} 30... Kf8 {[%clk
0:01:43.5]} 31. R1a2 {[%clk 0:01:25.1]} 31... Rb1+ {[%clk 0:01:40.3]} 32. Ke2
{[%clk 0:01:26.5]} 32... Ke8 {[%clk 0:01:41.9]} 33. Kd3 {[%clk 0:01:27.6]} 33...
Kd7 {[%clk 0:01:42]} 34. Kc4 {[%clk 0:01:24.9]} 34... Kc7 {[%clk 0:01:42.8]} 35.
Re2 {[%clk 0:01:17]} 35... f6 {[%clk 0:01:32.3]} 36. f4 {[%clk 0:01:17.4]} 36...
g5 {[%clk 0:01:04.3]} 37. e5 {[%clk 0:01:16.6]} 37... Kd7 {[%clk 0:00:57.7]} 38.
exf6 {[%clk 0:01:15.2]} 38... exf6 {[%clk 0:00:58.8]} 39. Re6 {[%clk 0:01:15.9]}
39... Rb2 {[%clk 0:00:54.1]} 40. Rxf6 {[%clk 0:01:15.4]} 40... Rxg2 {[%clk
0:00:49.2]} 41. f5 {[%clk 0:01:12.9]} 41... Rg3 {[%clk 0:00:47.5]} 42. Rf7+
{[%clk 0:01:13.4]} 42... Ke8 {[%clk 0:00:48.2]} 43. Rh7 {[%clk 0:01:12.9]} 43...
Rxh3 {[%clk 0:00:49.6]} 44. Kb5 {[%clk 0:01:14.4]} 44... Ra8 {[%clk 0:00:50.7]}
45. Rh8+ {[%clk 0:01:15.5]} 1-0

[Event "*** Titled Tuesday Blitz"]
[Site "Chess.com"]
[Date "2018.01.02"]
[Round "9"]
[White "JammyDodger91"]
[Black "SquashMaestro"]
[Result "1-0"]
[WhiteElo "2373"]
[BlackElo "2248"]
[TimeControl "180+2"]
[EndTime "14:59:48 PST"]
[Termination "JammyDodger91 won by resignation"]

1. e4 {[%clk 0:03:01.9]} 1... c5 {[%clk 0:03:00.1]} 2. d4 {[%clk 0:03:03.1]}
2... cxd4 {[%clk 0:03:00.4]} 3. c3 {[%clk 0:03:04.6]} 3... dxc3 {[%clk
0:03:01.2]} 4. Nxc3 {[%clk 0:03:06.5]} 4... Nc6 {[%clk 0:03:02.3]} 5. Nf3 {[%clk
0:03:08.1]} 5... e6 {[%clk 0:03:03.8]} 6. Bc4 {[%clk 0:03:09.7]} 6... Nge7
{[%clk 0:03:04.6]} 7. Bg5 {[%clk 0:03:10]} 7... f6 {[%clk 0:03:01.1]} 8. Be3
{[%clk 0:03:10.7]} 8... Ng6 {[%clk 0:03:01.3]} 9. O-O {[%clk 0:03:11.8]} 9...
Be7 {[%clk 0:03:02.2]} 10. Nb5 {[%clk 0:03:12.6]} 10... O-O {[%clk 0:03:01.8]}
11. Nd6 {[%clk 0:03:11]} 11... Nce5 {[%clk 0:02:59]} 12. Bb3 {[%clk 0:03:07.3]}
12... Nxf3+ {[%clk 0:02:49.7]} 13. gxf3 {[%clk 0:03:09.2]} 13... Qc7 {[%clk
0:02:36.2]} 14. Nf5 {[%clk 0:03:07.9]} 14... Qe5 {[%clk 0:02:24.8]} 15. Rc1
{[%clk 0:02:36.9]} 15... d5 {[%clk 0:02:09.9]} 16. Nxe7+ {[%clk 0:02:20.4]}
16... Nxe7 {[%clk 0:02:08.1]} 17. Bc5 {[%clk 0:02:21.6]} 17... Rf7 {[%clk
0:01:55]} 18. Re1 {[%clk 0:02:10]} 18... Qg5+ {[%clk 0:01:50.8]} 19. Kh1 {[%clk
0:02:09.6]} 19... Bd7 {[%clk 0:01:27.5]} 20. Bxe7 {[%clk 0:01:52.1]} 20... Rxe7
{[%clk 0:01:27.8]} 21. exd5 {[%clk 0:01:53.7]} 21... Rae8 {[%clk 0:01:16.9]} 22.
d6 {[%clk 0:00:48.8]} 22... Rf7 {[%clk 0:01:17.2]} 23. Rc7 {[%clk 0:00:49.8]}
23... Qb5 {[%clk 0:00:56.8]} 24. Qe2 {[%clk 0:00:26.8]} 24... Qxe2 {[%clk
0:00:35.2]} 25. Rxe2 {[%clk 0:00:28.7]} 25... Bc6 {[%clk 0:00:35.9]} 26. Rxe6
{[%clk 0:00:29.8]} 26... Bxf3+ {[%clk 0:00:32.5]} 27. Kg1 {[%clk 0:00:30.4]}
27... Kf8 {[%clk 0:00:20.8]} 28. Rxe8+ {[%clk 0:00:27.9]} 28... Kxe8 {[%clk
0:00:19.7]} 1-0

[Event "*** Titled Tuesday Blitz"]
[Site "Chess.com"]
[Date "2018.01.02"]
[Round "9"]
[White "Squirlolz"]
[Black "colemman"]
[Result "0-1"]
[WhiteElo "2445"]
[BlackElo "2425"]
[TimeControl "180+2"]
[EndTime "14:59:54 PST"]
[Termination "colemman won by checkmate"]

1. e4 {[%clk 0:03:01.9]} 1... c5 {[%clk 0:02:59.7]} 2. Nf3 {[%clk 0:03:01.6]}
2... e6 {[%clk 0:03:01.6]} 3. d4 {[%clk 0:03:00.8]} 3... cxd4 {[%clk 0:03:03.5]}
4. Nxd4 {[%clk 0:03:01.8]} 4... Nf6 {[%clk 0:03:05]} 5. Nc3 {[%clk 0:03:02.8]}
5... Nc6 {[%clk 0:03:06.5]} 6. Ndb5 {[%clk 0:03:03.9]} 6... Bb4 {[%clk
0:03:06.8]} 7. a3 {[%clk 0:03:04.1]} 7... Bxc3+ {[%clk 0:03:08.4]} 8. Nxc3
{[%clk 0:03:06]} 8... d5 {[%clk 0:03:09.6]} 9. exd5 {[%clk 0:03:07.9]} 9... exd5
{[%clk 0:03:10.9]} 10. Bd3 {[%clk 0:03:07.3]} 10... O-O {[%clk 0:03:12.4]} 11.
O-O {[%clk 0:03:08.8]} 11... d4 {[%clk 0:03:14]} 12. Ne4 {[%clk 0:03:09.5]}
12... Bf5 {[%clk 0:03:14.5]} 13. Bg5 {[%clk 0:03:03.5]} 13... Bxe4 {[%clk
0:03:14.7]} 14. Bxe4 {[%clk 0:03:02.8]} 14... h6 {[%clk 0:03:16.1]} 15. Bxf6
{[%clk 0:02:56.4]} 15... Qxf6 {[%clk 0:03:18]} 16. Qf3 {[%clk 0:02:53.2]} 16...
Qxf3 {[%clk 0:03:17.5]} 17. Bxf3 {[%clk 0:02:55.1]} 17... Ne5 {[%clk 0:03:18.8]}
18. Rad1 {[%clk 0:02:12.5]} 18... Nxf3+ {[%clk 0:03:17.5]} 19. gxf3 {[%clk
0:02:14.4]} 19... Rfd8 {[%clk 0:03:17.2]} 20. Rfe1 {[%clk 0:02:14.6]} 20... Rd7
{[%clk 0:03:17.9]} 21. Rd2 {[%clk 0:02:07.8]} 21... Rad8 {[%clk 0:03:14.9]} 22.
Kg2 {[%clk 0:02:07.3]} 22... Kf8 {[%clk 0:03:13.7]} 23. Rd3 {[%clk 0:02:07.3]}
23... Rd6 {[%clk 0:03:09.4]} 24. f4 {[%clk 0:02:07.4]} 24... Rb6 {[%clk
0:03:09.5]} 25. b3 {[%clk 0:02:05.2]} 25... Ra6 {[%clk 0:03:07.7]} 26. a4 {[%clk
0:02:06.3]} 26... Rc6 {[%clk 0:03:08.5]} 27. Re2 {[%clk 0:02:06.9]} 27... Rd5
{[%clk 0:03:04.6]} 28. Kf3 {[%clk 0:02:07.1]} 28... f5 {[%clk 0:02:55.7]} 29.
Re5 {[%clk 0:01:47.3]} 29... Rxe5 {[%clk 0:02:55.2]} 30. fxe5 {[%clk 0:01:49.2]}
30... Rxc2 {[%clk 0:02:50.4]} 31. Rxd4 {[%clk 0:01:50.6]} 31... Ke7 {[%clk
0:02:51.1]} 32. Rb4 {[%clk 0:01:33.9]} 32... b6 {[%clk 0:02:50]} 33. a5 {[%clk
0:01:34.7]} 33... bxa5 {[%clk 0:02:45.2]} 34. Rb7+ {[%clk 0:01:35.7]} 34... Ke6
{[%clk 0:02:46.5]} 35. Rxg7 {[%clk 0:01:35.8]} 35... Kxe5 {[%clk 0:02:40]} 36.
Rxa7 {[%clk 0:01:35.9]} 36... Ra2 {[%clk 0:02:40.3]} 37. b4 {[%clk 0:01:07.4]}
37... Ra3+ {[%clk 0:02:40.2]} 38. Kg2 {[%clk 0:01:08.9]} 38... axb4 {[%clk
0:02:41.2]} 39. Rb7 {[%clk 0:01:09.4]} 39... Rb3 {[%clk 0:02:39.3]} 40. Rh7
{[%clk 0:01:10.5]} 40... Rb1 {[%clk 0:02:20.6]} 41. Rxh6 {[%clk 0:01:09.7]}
41... b3 {[%clk 0:02:21.2]} 42. Rb6 {[%clk 0:01:10.8]} 42... Kd4 {[%clk
0:02:22]} 43. Kf3 {[%clk 0:01:07.6]} 43... Kc3 {[%clk 0:02:21.8]} 44. Kf4 {[%clk
0:00:47.7]} 44... Rf1 {[%clk 0:02:21.5]} 45. f3 {[%clk 0:00:21.7]} 45... b2
{[%clk 0:02:22.1]} 46. Rc6+ {[%clk 0:00:22.8]} 46... Kd4 {[%clk 0:02:20.1]} 47.
Rb6 {[%clk 0:00:24]} 47... b1=Q {[%clk 0:02:20.7]} 48. Rxb1 {[%clk 0:00:24.6]}
48... Rxb1 {[%clk 0:02:22.2]} 49. Kxf5 {[%clk 0:00:26.5]} 49... Ke3 {[%clk
0:02:23.5]} 50. h4 {[%clk 0:00:27.2]} 50... Kxf3 {[%clk 0:02:22.1]} 51. h5
{[%clk 0:00:28.5]} 51... Rb5+ {[%clk 0:02:16.2]} 52. Kg6 {[%clk 0:00:29.6]}
52... Kg4 {[%clk 0:02:15.6]} 53. h6 {[%clk 0:00:30.5]} 53... Rb6+ {[%clk
0:02:17.1]} 54. Kg7 {[%clk 0:00:31.9]} 54... Kg5 {[%clk 0:02:15.5]} 55. h7
{[%clk 0:00:33]} 55... Rb7+ {[%clk 0:02:16.9]} 56. Kg8 {[%clk 0:00:29.2]} 56...
Kg6 {[%clk 0:02:17.4]} 57. h8=Q {[%clk 0:00:25.7]} 57... Rb8# {[%clk 0:02:17.6]}
0-1

[Event "*** Titled Tuesday Blitz"]
[Site "Chess.com"]
[Date "2018.01.02"]
[Round "9"]
[White "AkshatChandra"]
[Black "MITerryble"]
[Result "1-0"]
[WhiteElo "2697"]
[BlackElo "2675"]
[TimeControl "180+2"]
[EndTime "15:00:04 PST"]
[Termination "AkshatChandra won by checkmate"]

1. b3 {[%clk 0:02:55.1]} 1... d5 {[%clk 0:02:58.5]} 2. Bb2 {[%clk 0:02:55.4]}
2... Bg4 {[%clk 0:02:59.3]} 3. f3 {[%clk 0:02:56.7]} 3... Bf5 {[%clk 0:02:59.9]}
4. e4 {[%clk 0:02:36.2]} 4... dxe4 {[%clk 0:02:55.3]} 5. Nc3 {[%clk 0:02:37.4]}
5... Nf6 {[%clk 0:02:48.3]} 6. Qe2 {[%clk 0:02:34]} 6... Nc6 {[%clk 0:02:44.3]}
7. fxe4 {[%clk 0:02:30.8]} 7... Nd4 {[%clk 0:02:39.8]} 8. Qd3 {[%clk 0:02:27.3]}
8... Bg6 {[%clk 0:02:32.1]} 9. Nf3 {[%clk 0:02:28.5]} 9... Nc6 {[%clk
0:02:11.2]} 10. Qb5 {[%clk 0:02:20.2]} 10... Qc8 {[%clk 0:01:50]} 11. O-O-O
{[%clk 0:02:20]} 11... a6 {[%clk 0:01:23.3]} 12. Qe2 {[%clk 0:02:20.4]} 12... e5
{[%clk 0:01:24.2]} 13. Nd5 {[%clk 0:02:18.5]} 13... Bd6 {[%clk 0:01:20.2]} 14.
d4 {[%clk 0:02:10.1]} 14... Bh5 {[%clk 0:01:13]} 15. dxe5 {[%clk 0:01:55.7]}
15... Bxe5 {[%clk 0:01:07.9]} 16. Bxe5 {[%clk 0:01:47.8]} 16... Nxe5 {[%clk
0:01:08.4]} 17. Qe3 {[%clk 0:01:49.3]} 17... Nxf3 {[%clk 0:00:43.3]} 18. gxf3
{[%clk 0:01:51.2]} 18... Nxd5 {[%clk 0:00:34.5]} 19. Rxd5 {[%clk 0:01:38.3]}
19... Bg6 {[%clk 0:00:35.1]} 20. h4 {[%clk 0:01:39.9]} 20... f6 {[%clk
0:00:34.5]} 21. Bh3 {[%clk 0:01:38.4]} 21... Qb8 {[%clk 0:00:24.5]} 22. Qc5
{[%clk 0:01:28.9]} 22... c6 {[%clk 0:00:20.3]} 23. Rd7 {[%clk 0:01:14]} 23...
Qf4+ {[%clk 0:00:21]} 24. Kb1 {[%clk 0:01:10.2]} 24... Qe5 {[%clk 0:00:22.1]}
25. Qxe5+ {[%clk 0:00:58.9]} 25... fxe5 {[%clk 0:00:23.8]} 26. Rxg7 {[%clk
0:01:00.2]} 26... Rd8 {[%clk 0:00:22.5]} 27. Rg1 {[%clk 0:00:48.1]} 27... b5
{[%clk 0:00:16.9]} 28. Rc7 {[%clk 0:00:39.2]} 28... Rf8 {[%clk 0:00:15.1]} 29.
Bg4 {[%clk 0:00:31.4]} 29... Rf6 {[%clk 0:00:15.3]} 30. h5 {[%clk 0:00:24.7]}
30... Bf7 {[%clk 0:00:16.3]} 31. Bf5 {[%clk 0:00:26.3]} 31... Rh6 {[%clk
0:00:15.6]} 32. Rg7 {[%clk 0:00:26.6]} 32... Bxh5 {[%clk 0:00:16.5]} 33. Rg8#
{[%clk 0:00:27.6]} 1-0

[Event "*** Titled Tuesday Blitz"]
[Site "Chess.com"]
[Date "2018.01.02"]
[Round "9"]
[White "ftorodent"]
[Black "Blitzstream"]
[Result "1-0"]
[WhiteElo "2531"]
[BlackElo "2502"]
[TimeControl "180+2"]
[EndTime "15:00:09 PST"]
[Termination "ftorodent won by resignation"]

1. d4 {[%clk 0:03:01.9]} 1... e5 {[%clk 0:03:00.4]} 2. dxe5 {[%clk 0:03:01.7]}
2... Nc6 {[%clk 0:03:02]} 3. Nf3 {[%clk 0:03:01.9]} 3... d6 {[%clk 0:03:02.6]}
4. Bg5 {[%clk 0:02:55.8]} 4... Qd7 {[%clk 0:03:03.2]} 5. exd6 {[%clk 0:02:46.3]}
5... Bxd6 {[%clk 0:03:03.1]} 6. e3 {[%clk 0:02:47.6]} 6... Qg4 {[%clk
0:03:03.4]} 7. Nbd2 {[%clk 0:02:28]} 7... Be6 {[%clk 0:02:56.1]} 8. h3 {[%clk
0:02:22.1]} 8... Qh5 {[%clk 0:02:09.1]} 9. Ne4 {[%clk 0:02:19.5]} 9... Be7
{[%clk 0:01:44.7]} 10. Ng3 {[%clk 0:01:36.3]} 10... Qg6 {[%clk 0:01:42.8]} 11.
Bd3 {[%clk 0:01:37]} 11... f5 {[%clk 0:01:39]} 12. e4 {[%clk 0:01:35.2]} 12...
f4 {[%clk 0:01:05.8]} 13. Bxf4 {[%clk 0:01:21.8]} 13... O-O-O {[%clk 0:01:06.6]}
14. Qe2 {[%clk 0:01:21.4]} 14... Qf6 {[%clk 0:00:58.2]} 15. Bd2 {[%clk 0:01:09]}
15... Qxb2 {[%clk 0:00:39.5]} 16. O-O {[%clk 0:01:09.5]} 16... Nf6 {[%clk
0:00:37.8]} 17. Rab1 {[%clk 0:01:02.6]} 17... Qa3 {[%clk 0:00:38.6]} 18. Bb5
{[%clk 0:00:58.1]} 18... Nd4 {[%clk 0:00:28.7]} 19. Nxd4 {[%clk 0:00:57.1]}
19... Rxd4 {[%clk 0:00:30.6]} 20. Be3 {[%clk 0:00:52.3]} 20... Rdd8 {[%clk
0:00:31]} 21. Bc4 {[%clk 0:00:48.9]} 21... Bd7 {[%clk 0:00:24.3]} 22. e5 {[%clk
0:00:47.7]} 22... Ne8 {[%clk 0:00:21.2]} 23. Rb3 {[%clk 0:00:45]} 23... Qa4
{[%clk 0:00:19.4]} 24. Rfb1 {[%clk 0:00:39.1]} 24... Bc6 {[%clk 0:00:20.2]} 25.
Nf5 {[%clk 0:00:39.9]} 25... Bf8 {[%clk 0:00:20.1]} 26. Bb5 {[%clk 0:00:36.7]}
26... Bxb5 {[%clk 0:00:20.8]} 27. Rxb5 {[%clk 0:00:37.6]} 27... b6 {[%clk
0:00:21.8]} 28. Qf3 {[%clk 0:00:37.6]} 28... Kb8 {[%clk 0:00:19.9]} 29. e6
{[%clk 0:00:36.7]} 29... Bd6 {[%clk 0:00:13.8]} 30. Bxb6 {[%clk 0:00:34.8]}
30... axb6 {[%clk 0:00:11.6]} 31. Rxb6+ {[%clk 0:00:35.8]} 31... cxb6 {[%clk
0:00:11.1]} 32. Rxb6+ {[%clk 0:00:36.5]} 1-0

[Event "*** Titled Tuesday Blitz"]
[Site "Chess.com"]
[Date "2018.01.02"]
[Round "9"]
[White "ChainsOfFantasia"]
[Black "VerdeNotte"]
[Result "0-1"]
[WhiteElo "2458"]
[BlackElo "2670"]
[TimeControl "180+2"]
[EndTime "15:00:19 PST"]
[Termination "VerdeNotte won by checkmate"]

1. d4 {[%clk 0:02:58.5]} 1... g6 {[%clk 0:03:00.2]} 2. c4 {[%clk 0:02:59.1]}
2... d6 {[%clk 0:03:01.1]} 3. Nc3 {[%clk 0:03:00.3]} 3... Bg7 {[%clk 0:03:02.5]}
4. Nf3 {[%clk 0:03:01.8]} 4... Nf6 {[%clk 0:03:03.7]} 5. e4 {[%clk 0:03:02.9]}
5... O-O {[%clk 0:03:05.2]} 6. Be2 {[%clk 0:03:04.8]} 6... Nbd7 {[%clk
0:03:06.4]} 7. O-O {[%clk 0:03:06.7]} 7... e5 {[%clk 0:03:07.3]} 8. Re1 {[%clk
0:03:05.3]} 8... c6 {[%clk 0:03:06.1]} 9. Be3 {[%clk 0:03:01.6]} 9... Qe7 {[%clk
0:03:05.9]} 10. d5 {[%clk 0:03:02.5]} 10... c5 {[%clk 0:03:06.4]} 11. a3 {[%clk
0:03:03]} 11... Kh8 {[%clk 0:03:06.5]} 12. b4 {[%clk 0:03:03.4]} 12... b6 {[%clk
0:03:07.7]} 13. bxc5 {[%clk 0:03:04.4]} 13... Nxc5 {[%clk 0:03:08.4]} 14. Nd2
{[%clk 0:03:04.8]} 14... Ng8 {[%clk 0:03:08]} 15. a4 {[%clk 0:03:02.7]} 15... f5
{[%clk 0:03:02.7]} 16. f3 {[%clk 0:02:57.4]} 16... a5 {[%clk 0:02:53.7]} 17. Nb3
{[%clk 0:02:55.4]} 17... Nf6 {[%clk 0:02:53.6]} 18. Nxc5 {[%clk 0:02:55.6]}
18... bxc5 {[%clk 0:02:54.4]} 19. Bd3 {[%clk 0:02:46.8]} 19... f4 {[%clk
0:02:53.6]} 20. Bf2 {[%clk 0:02:47.9]} 20... g5 {[%clk 0:02:54.8]} 21. Be2
{[%clk 0:02:45]} 21... h5 {[%clk 0:02:55.1]} 22. h3 {[%clk 0:02:44.1]} 22... Bh6
{[%clk 0:02:48.1]} 23. Ra3 {[%clk 0:02:44.6]} 23... Rg8 {[%clk 0:02:46.9]} 24.
Nb5 {[%clk 0:02:45.1]} 24... g4 {[%clk 0:02:46]} 25. hxg4 {[%clk 0:02:42.2]}
25... hxg4 {[%clk 0:02:47.2]} 26. fxg4 {[%clk 0:02:43.5]} 26... Bxg4 {[%clk
0:02:44.6]} 27. Bxg4 {[%clk 0:02:35.7]} 27... Nxg4 {[%clk 0:02:46.5]} 28. Rh3
{[%clk 0:02:36.6]} 28... Rg6 {[%clk 0:02:44.2]} 29. Bh4 {[%clk 0:02:31.4]} 29...
Qg7 {[%clk 0:02:44.2]} 30. Qf3 {[%clk 0:02:32.2]} 30... Rg8 {[%clk 0:02:37.1]}
31. Re2 {[%clk 0:02:28.8]} 31... Ne3 {[%clk 0:02:34.5]} 32. Rh2 {[%clk 0:02:15]}
32... Nxc4 {[%clk 0:02:34.3]} 33. Be1 {[%clk 0:01:48.7]} 33... Ne3 {[%clk
0:02:31]} 34. Bxa5 {[%clk 0:01:43]} 34... Ra8 {[%clk 0:01:59.3]} 35. Bc3 {[%clk
0:01:00.8]} 35... Rxa4 {[%clk 0:01:50.5]} 36. Qh3 {[%clk 0:01:01.6]} 36... Rxe4
{[%clk 0:01:40]} 37. Qc8+ {[%clk 0:00:51.9]} 37... Kh7 {[%clk 0:01:40]} 38. Nc7
{[%clk 0:00:46.1]} 38... f3 {[%clk 0:01:35.8]} 39. Ne8 {[%clk 0:00:43.8]} 39...
Qe7 {[%clk 0:00:55.8]} 40. Rf2 {[%clk 0:00:21.4]} 40... Nxg2 {[%clk 0:00:56.2]}
41. Kf1 {[%clk 0:00:17.7]} 41... Re1+ {[%clk 0:00:55.6]} 42. Bxe1 {[%clk
0:00:17.6]} 42... Ne3# {[%clk 0:00:57.5]} 0-1

[Event "*** Titled Tuesday Blitz"]
[Site "Chess.com"]
[Date "2018.01.02"]
[Round "9"]
[White "inegrepus"]
[Black "Slmctk"]
[Result "0-1"]
[WhiteElo "2147"]
[BlackElo "2329"]
[TimeControl "180+2"]
[EndTime "15:00:39 PST"]
[Termination "Slmctk won by checkmate"]

1. d4 {[%clk 0:03:01.7]} 1... Nf6 {[%clk 0:02:59.8]} 2. c4 {[%clk 0:03:02.7]}
2... e5 {[%clk 0:02:59.9]} 3. dxe5 {[%clk 0:03:03.5]} 3... Ng4 {[%clk
0:03:00.9]} 4. e4 {[%clk 0:02:23]} 4... Nxe5 {[%clk 0:02:59.2]} 5. f4 {[%clk
0:02:23.8]} 5... Ng6 {[%clk 0:02:59.5]} 6. Be3 {[%clk 0:02:24.3]} 6... Bb4+
{[%clk 0:02:59.3]} 7. Nd2 {[%clk 0:02:25.1]} 7... O-O {[%clk 0:02:56.6]} 8. Nf3
{[%clk 0:02:26.1]} 8... d6 {[%clk 0:02:55.8]} 9. Bd3 {[%clk 0:02:26.5]} 9... Nd7
{[%clk 0:02:52.2]} 10. O-O {[%clk 0:02:26.9]} 10... Re8 {[%clk 0:02:50.6]} 11.
Qc2 {[%clk 0:02:24.1]} 11... Bc5 {[%clk 0:02:48.9]} 12. Rae1 {[%clk 0:02:22.4]}
12... Bxe3+ {[%clk 0:02:49.4]} 13. Rxe3 {[%clk 0:02:23.5]} 13... Nxf4 {[%clk
0:02:50.1]} 14. Nd4 {[%clk 0:02:18.2]} 14... Nxd3 {[%clk 0:02:46.2]} 15. Qxd3
{[%clk 0:02:19]} 15... Ne5 {[%clk 0:02:47.3]} 16. Qe2 {[%clk 0:02:20.1]} 16...
c6 {[%clk 0:02:45.2]} 17. Nf5 {[%clk 0:02:21]} 17... Bxf5 {[%clk 0:02:45.6]} 18.
Rxf5 {[%clk 0:02:18.7]} 18... Qb6 {[%clk 0:02:41.7]} 19. Kh1 {[%clk 0:02:13.2]}
19... Qxb2 {[%clk 0:02:39.5]} 20. h3 {[%clk 0:02:10.1]} 20... Qxa2 {[%clk
0:02:33.4]} 21. Rg3 {[%clk 0:01:39.6]} 21... g6 {[%clk 0:02:12.8]} 22. Qe3
{[%clk 0:01:20.3]} 22... Nxc4 {[%clk 0:01:55.1]} 23. Nxc4 {[%clk 0:01:01.2]}
23... Qxc4 {[%clk 0:01:57]} 24. Qh6 {[%clk 0:01:01.1]} 24... Qxe4 {[%clk
0:01:27.3]} 25. Rh5 {[%clk 0:00:44.3]} 25... Qe1+ {[%clk 0:01:27.7]} 26. Kh2
{[%clk 0:00:45.4]} 26... Qxg3+ {[%clk 0:01:29]} 27. Kxg3 {[%clk 0:00:46.6]}
27... gxh5 {[%clk 0:01:30.6]} 28. Qg5+ {[%clk 0:00:19.4]} 28... Kf8 {[%clk
0:01:30.6]} 29. Qxh5 {[%clk 0:00:16.3]} 29... Re6 {[%clk 0:01:20.4]} 30. Qxh7
{[%clk 0:00:15.4]} 30... Rg6+ {[%clk 0:01:19.2]} 31. Kh2 {[%clk 0:00:16.5]}
31... Ke7 {[%clk 0:01:19.7]} 32. Qh4+ {[%clk 0:00:17.3]} 32... Kd7 {[%clk
0:01:18.6]} 33. Qf4 {[%clk 0:00:18.2]} 33... Rf8 {[%clk 0:01:14.3]} 34. Qf5+
{[%clk 0:00:19.2]} 34... Kc7 {[%clk 0:01:14.5]} 35. Qa5+ {[%clk 0:00:19.8]}
35... Kb8 {[%clk 0:01:13.4]} 36. Qb4 {[%clk 0:00:19.8]} 36... Rfg8 {[%clk
0:01:12.2]} 37. g4 {[%clk 0:00:19.2]} 37... f5 {[%clk 0:01:10.2]} 38. g5 {[%clk
0:00:20.2]} 38... Rxg5 {[%clk 0:01:10.2]} 39. Qxd6+ {[%clk 0:00:21.1]} 39... Ka8
{[%clk 0:01:11.3]} 40. h4 {[%clk 0:00:20.8]} 40... Rg2+ {[%clk 0:01:08.7]} 41.
Kh3 {[%clk 0:00:21.9]} 41... Rg1 {[%clk 0:01:08.8]} 42. Kh2 {[%clk 0:00:17.7]}
42... a6 {[%clk 0:01:02.9]} 43. h5 {[%clk 0:00:14.7]} 43... R1g5 {[%clk
0:00:56.7]} 44. h6 {[%clk 0:00:13.7]} 44... Rh5# {[%clk 0:00:57.3]} 0-1